[Event "Late-Titled-Tuesday-Blitz-September-19-2023"]
[Site "Chess.com"]
[Date "2023.09.19"]
[Round "5"]
[White "dzilleruelo"]
[Black "IMRosen"]
[Result "0-1"]
[WhiteElo "2330"]
[BlackElo "2574"]
[TimeControl "180+1"]
[EndTime "14:54:59 PDT"]
[Termination "IMRosen won by resignation"]

1. e4 {[%clk 0:03:00.9]} 1... e5 {[%clk 0:02:59.7]} 2. Nf3 {[%clk 0:03:01]} 2...
Nf6 {[%clk 0:02:59.1]} 3. Nxe5 {[%clk 0:03:00.5]} 3... Nc6 {[%clk 0:02:59.7]} 4.
Nxc6 {[%clk 0:03:00.1]} 4... dxc6 {[%clk 0:03:00.6]} 5. e5 {[%clk 0:02:59.5]}
5... Nd5 {[%clk 0:03:00]} 6. d4 {[%clk 0:02:55.2]} 6... c5 {[%clk 0:02:58.2]} 7.
Be2 {[%clk 0:02:37.8]} 7... Bf5 {[%clk 0:02:41.7]} 8. c3 {[%clk 0:02:31.7]} 8...
Be7 {[%clk 0:02:24.2]} 9. O-O {[%clk 0:02:28.2]} 9... O-O {[%clk 0:02:24.3]} 10.
Bf3 {[%clk 0:02:24.7]} 10... c6 {[%clk 0:02:21.9]} 11. a3 {[%clk 0:02:20.7]}
11... Qb6 {[%clk 0:02:15.1]} 12. dxc5 {[%clk 0:02:13.5]} 12... Qxc5 {[%clk
0:02:11.3]} 13. Qe2 {[%clk 0:01:51.9]} 13... Rfd8 {[%clk 0:02:10.7]} 14. Nd2
{[%clk 0:01:50.7]} 14... Nf4 {[%clk 0:02:00.4]} 15. Qe3 {[%clk 0:01:32.9]} 15...
Qxe3 {[%clk 0:01:57.7]} 16. fxe3 {[%clk 0:01:33.8]} 16... Nd3 {[%clk 0:01:56.9]}
17. Ne4 {[%clk 0:01:27.9]} 17... Nxe5 {[%clk 0:01:54.2]} 18. Ng3 {[%clk
0:01:21.1]} 18... Bd3 {[%clk 0:01:51.8]} 19. Re1 {[%clk 0:01:17.3]} 19... Bc5
{[%clk 0:01:48.7]} 20. Kf2 {[%clk 0:01:15.7]} 20... a5 {[%clk 0:01:44.2]} 21.
Be4 {[%clk 0:01:08.8]} 21... Bxe4 {[%clk 0:01:41.7]} 22. Nxe4 {[%clk 0:01:08.4]}
22... Nd3+ {[%clk 0:01:42.3]} 23. Kf1 {[%clk 0:01:07.4]} 23... Nxe1 {[%clk
0:01:42.8]} 24. Kxe1 {[%clk 0:01:08.3]} 24... Be7 {[%clk 0:01:43]} 25. Ke2
{[%clk 0:01:03.4]} 25... f5 {[%clk 0:01:42.1]} 26. Nf2 {[%clk 0:01:03.6]} 26...
a4 {[%clk 0:01:40.9]} 27. Bd2 {[%clk 0:01:02.9]} 27... Rd7 {[%clk 0:01:39]} 28.
Rf1 {[%clk 0:01:00.8]} 28... Rad8 {[%clk 0:01:38.2]} 29. Bc1 {[%clk 0:01:01.3]}
29... g6 {[%clk 0:01:38.6]} 30. h3 {[%clk 0:01:00.5]} 30... Bc5 {[%clk
0:01:38.6]} 31. g4 {[%clk 0:01:00]} 31... Rf7 {[%clk 0:01:29.1]} 32. g5 {[%clk
0:00:54.3]} 32... Re7 {[%clk 0:01:24.3]} 33. Nd3 {[%clk 0:00:53.1]} 33... Bb6
{[%clk 0:01:20.4]} 34. c4 {[%clk 0:00:49]} 34... Re4 {[%clk 0:01:08.1]} 35. c5
{[%clk 0:00:43.8]} 35... Bc7 {[%clk 0:01:08.5]} 36. Bd2 {[%clk 0:00:41.4]} 36...
Rh4 {[%clk 0:01:02.7]} 37. Rf3 {[%clk 0:00:39.8]} 37... Re4 {[%clk 0:00:56.8]}
38. Bc3 {[%clk 0:00:36.4]} 38... Rde8 {[%clk 0:00:54.8]} 39. Kd2 {[%clk
0:00:33.1]} 39... b6 {[%clk 0:00:47.7]} 40. Bd4 {[%clk 0:00:29.1]} 40... b5
{[%clk 0:00:45.3]} 41. Kc3 {[%clk 0:00:23.1]} 41... Ba5+ {[%clk 0:00:43.7]} 42.
Kc2 {[%clk 0:00:23.4]} 42... Bd8 {[%clk 0:00:34.3]} 43. Rg3 {[%clk 0:00:20.9]}
43... Bc7 {[%clk 0:00:34.5]} 44. Rf3 {[%clk 0:00:21.1]} 44... Rd8 {[%clk
0:00:34.5]} 45. Kc3 {[%clk 0:00:18.4]} 45... Kf7 {[%clk 0:00:32.1]} 46. Kc2
{[%clk 0:00:18.4]} 46... Ke6 {[%clk 0:00:30.8]} 47. Nb4 {[%clk 0:00:18.6]} 47...
Kd7 {[%clk 0:00:29.3]} 48. Bf6 {[%clk 0:00:18.6]} 48... Rde8 {[%clk 0:00:28.9]}
49. Rf2 {[%clk 0:00:15.5]} 49... Rc4+ {[%clk 0:00:28.6]} 50. Kb1 {[%clk
0:00:14.9]} 50... Rxc5 {[%clk 0:00:28.4]} 51. Bd4 {[%clk 0:00:09.9]} 51... Rc4
{[%clk 0:00:27.6]} 52. Rd2 {[%clk 0:00:09.5]} 52... Kc8 {[%clk 0:00:27.6]} 53.
Na6 {[%clk 0:00:09]} 53... Be5 {[%clk 0:00:21.4]} 54. Bc5 {[%clk 0:00:06.5]}
54... Rd8 {[%clk 0:00:16.1]} 55. Rxd8+ {[%clk 0:00:03.1]} 55... Kxd8 {[%clk
0:00:17]} 56. Bb6+ {[%clk 0:00:03.6]} 56... Ke8 {[%clk 0:00:13.6]} 57. Nc5
{[%clk 0:00:04.1]} 57... Rh4 {[%clk 0:00:12.6]} 58. Ne6 {[%clk 0:00:03.8]} 58...
Rxh3 {[%clk 0:00:12]} 59. Kc2 {[%clk 0:00:03.9]} 59... Ke7 {[%clk 0:00:11.3]}
60. Kd3 {[%clk 0:00:04.8]} 60... Kxe6 {[%clk 0:00:11.5]} 0-1

[Event "Late-Titled-Tuesday-Blitz-September-19-2023"]
[Site "Chess.com"]
[Date "2023.09.19"]
[Round "5"]
[White "DanielDardha2005"]
[Black "Njal28"]
[Result "0-1"]
[WhiteElo "2914"]
[BlackElo "3112"]
[TimeControl "180+1"]
[EndTime "14:55:01 PDT"]
[Termination "Njal28 won on time"]

1. d4 {[%clk 0:03:00.9]} 1... Nf6 {[%clk 0:03:00.1]} 2. Bg5 {[%clk 0:03:00.7]}
2... d5 {[%clk 0:03:00]} 3. e3 {[%clk 0:03:00.7]} 3... c5 {[%clk 0:03:00.4]} 4.
Bxf6 {[%clk 0:03:00.4]} 4... gxf6 {[%clk 0:03:01.3]} 5. dxc5 {[%clk 0:03:00.9]}
5... e6 {[%clk 0:03:02.1]} 6. Nf3 {[%clk 0:03:00.6]} 6... Bxc5 {[%clk
0:03:02.4]} 7. Be2 {[%clk 0:03:01.4]} 7... O-O {[%clk 0:03:02]} 8. O-O {[%clk
0:03:02.1]} 8... Be7 {[%clk 0:03:01.2]} 9. Nbd2 {[%clk 0:02:54.3]} 9... Nc6
{[%clk 0:02:54.2]} 10. a3 {[%clk 0:02:52.8]} 10... f5 {[%clk 0:02:51]} 11. b4
{[%clk 0:02:45.9]} 11... Bf6 {[%clk 0:02:50.9]} 12. Rb1 {[%clk 0:02:45.7]} 12...
a5 {[%clk 0:02:35]} 13. b5 {[%clk 0:02:42.6]} 13... Ne5 {[%clk 0:02:30.6]} 14.
Nd4 {[%clk 0:02:41.4]} 14... Qe7 {[%clk 0:02:20.5]} 15. f4 {[%clk 0:02:32.9]}
15... Nd7 {[%clk 0:02:06.8]} 16. Bd3 {[%clk 0:02:22]} 16... Kh8 {[%clk 0:01:42]}
17. Ra1 {[%clk 0:02:08.5]} 17... Rg8 {[%clk 0:01:37.7]} 18. N2f3 {[%clk
0:02:08.3]} 18... Rg7 {[%clk 0:01:25.4]} 19. Ra2 {[%clk 0:02:03.8]} 19... Qd6
{[%clk 0:01:21.1]} 20. Qe1 {[%clk 0:01:50.7]} 20... Nc5 {[%clk 0:01:18.8]} 21.
a4 {[%clk 0:01:37.5]} 21... Bd7 {[%clk 0:01:18.9]} 22. Qc3 {[%clk 0:01:34.4]}
22... b6 {[%clk 0:01:13.8]} 23. Qe1 {[%clk 0:01:33.3]} 23... Rag8 {[%clk
0:01:11.8]} 24. g3 {[%clk 0:01:30.4]} 24... Rc8 {[%clk 0:01:12.3]} 25. Rf2
{[%clk 0:01:29]} 25... h6 {[%clk 0:01:07]} 26. Rg2 {[%clk 0:01:29.2]} 26... Ne4
{[%clk 0:01:00.8]} 27. Qa1 {[%clk 0:01:22.6]} 27... Kh7 {[%clk 0:00:42.2]} 28.
Ra3 {[%clk 0:01:21.3]} 28... Kh8 {[%clk 0:00:36.6]} 29. Rb3 {[%clk 0:01:17.4]}
29... Nc5 {[%clk 0:00:36.8]} 30. Rc3 {[%clk 0:01:14.1]} 30... Rc7 {[%clk
0:00:36.9]} 31. Qa3 {[%clk 0:01:12.4]} 31... Be7 {[%clk 0:00:33.9]} 32. Qa1
{[%clk 0:01:07.2]} 32... Bf6 {[%clk 0:00:32.8]} 33. Qa3 {[%clk 0:01:07.5]} 33...
Rg8 {[%clk 0:00:30.9]} 34. h3 {[%clk 0:01:00.2]} 34... Rgc8 {[%clk 0:00:22.8]}
35. g4 {[%clk 0:00:50]} 35... fxg4 {[%clk 0:00:23.7]} 36. hxg4 {[%clk
0:00:50.3]} 36... Nb7 {[%clk 0:00:19.7]} 37. Rb3 {[%clk 0:00:24.6]} 37... Qxa3
{[%clk 0:00:19.1]} 38. Rxa3 {[%clk 0:00:25.5]} 38... Kg7 {[%clk 0:00:17.3]} 39.
Ra1 {[%clk 0:00:18.4]} 39... Nc5 {[%clk 0:00:17.7]} 40. g5 {[%clk 0:00:18.1]}
40... hxg5 {[%clk 0:00:17.7]} 41. fxg5 {[%clk 0:00:16.2]} 41... Bxd4 {[%clk
0:00:15.7]} 42. exd4 {[%clk 0:00:15]} 42... Nxd3 {[%clk 0:00:11.9]} 43. cxd3
{[%clk 0:00:15.9]} 43... Rc1+ {[%clk 0:00:11.5]} 44. Rxc1 {[%clk 0:00:15]} 44...
Rxc1+ {[%clk 0:00:12.4]} 45. Kh2 {[%clk 0:00:12.3]} 45... Ra1 {[%clk 0:00:13.3]}
46. Ne5 {[%clk 0:00:10.3]} 46... Be8 {[%clk 0:00:13.9]} 47. Rc2 {[%clk 0:00:11]}
47... Rxa4 {[%clk 0:00:14.1]} 48. Rc8 {[%clk 0:00:11.2]} 48... Bxb5 {[%clk
0:00:14.5]} 49. Rb8 {[%clk 0:00:07.1]} 49... Rxd4 {[%clk 0:00:12.8]} 50. Rxb6
{[%clk 0:00:06.2]} 50... Bxd3 {[%clk 0:00:12.1]} 51. Rb7 {[%clk 0:00:03.9]}
51... Bg6 {[%clk 0:00:12.3]} 52. Kg3 {[%clk 0:00:04]} 52... a4 {[%clk
0:00:12.5]} 53. Nd7 {[%clk 0:00:04.1]} 53... a3 {[%clk 0:00:11.2]} 54. Nf6
{[%clk 0:00:04.3]} 54... Ra4 {[%clk 0:00:07.1]} 55. Rb8 {[%clk 0:00:04.4]} 55...
Bh7 {[%clk 0:00:07.4]} 56. Ne8+ {[%clk 0:00:01.4]} 56... Kg6 {[%clk 0:00:07.6]}
0-1

[Event "Late-Titled-Tuesday-Blitz-September-19-2023"]
[Site "Chess.com"]
[Date "2023.09.19"]
[Round "5"]
[White "GoldenShare"]
[Black "MikaelyanArman"]
[Result "0-1"]
[WhiteElo "2594"]
[BlackElo "2873"]
[TimeControl "180+1"]
[EndTime "14:55:01 PDT"]
[Termination "MikaelyanArman won by resignation"]

1. e4 {[%clk 0:02:58.9]} 1... e5 {[%clk 0:02:58.2]} 2. Nf3 {[%clk 0:02:57.6]}
2... Nc6 {[%clk 0:02:58.7]} 3. Bc4 {[%clk 0:02:57.7]} 3... Bc5 {[%clk 0:02:58]}
4. O-O {[%clk 0:02:57.8]} 4... d6 {[%clk 0:02:56.9]} 5. c3 {[%clk 0:02:42.8]}
5... Bb6 {[%clk 0:02:53.3]} 6. h3 {[%clk 0:02:30.3]} 6... Nf6 {[%clk 0:02:52.6]}
7. Re1 {[%clk 0:02:11.8]} 7... O-O {[%clk 0:02:30.3]} 8. d4 {[%clk 0:01:36.9]}
8... exd4 {[%clk 0:02:30.3]} 9. cxd4 {[%clk 0:01:36.9]} 9... Nxe4 {[%clk
0:02:16.5]} 10. Rxe4 {[%clk 0:01:33.9]} 10... d5 {[%clk 0:02:16.6]} 11. Bxd5
{[%clk 0:01:34.4]} 11... Qxd5 {[%clk 0:02:17.4]} 12. Nc3 {[%clk 0:01:35]} 12...
Qd8 {[%clk 0:01:52]} 13. d5 {[%clk 0:01:34.8]} 13... Bf5 {[%clk 0:01:42.4]} 14.
Rf4 {[%clk 0:01:27.9]} 14... Ne7 {[%clk 0:01:41.9]} 15. Nd4 {[%clk 0:01:06]}
15... Bg6 {[%clk 0:01:38.4]} 16. Nf3 {[%clk 0:00:56]} 16... Qd6 {[%clk
0:01:26.3]} 17. Rg4 {[%clk 0:00:53.1]} 17... Rad8 {[%clk 0:01:15.5]} 18. Bf4
{[%clk 0:00:53.3]} 18... Qc5 {[%clk 0:01:13]} 19. Be3 {[%clk 0:00:51.5]} 19...
Qd6 {[%clk 0:01:08.5]} 20. Bxb6 {[%clk 0:00:50.6]} 20... axb6 {[%clk 0:01:03]}
21. Rd4 {[%clk 0:00:50.6]} 21... Qf6 {[%clk 0:00:52]} 22. Rc1 {[%clk 0:00:47.2]}
22... Nf5 {[%clk 0:00:48.1]} 23. Rd2 {[%clk 0:00:36.2]} 23... Nd6 {[%clk
0:00:47.5]} 24. Re2 {[%clk 0:00:24.7]} 24... Rfe8 {[%clk 0:00:46.5]} 25. Qf1
{[%clk 0:00:20.7]} 25... h6 {[%clk 0:00:43.3]} 26. Rce1 {[%clk 0:00:20.5]} 26...
Rxe2 {[%clk 0:00:37.5]} 27. Qxe2 {[%clk 0:00:21.4]} 27... Bh5 {[%clk 0:00:36.9]}
28. g4 {[%clk 0:00:20.8]} 28... Bg6 {[%clk 0:00:36.3]} 29. Ne5 {[%clk
0:00:19.9]} 29... Re8 {[%clk 0:00:33.8]} 30. Nd7 {[%clk 0:00:13.3]} 30... Qd8
{[%clk 0:00:33.1]} 31. Ne5 {[%clk 0:00:11.9]} 31... f6 {[%clk 0:00:30.2]} 32.
Nxg6 {[%clk 0:00:12.3]} 32... Rxe2 {[%clk 0:00:30.9]} 33. Rxe2 {[%clk
0:00:13.2]} 33... Kh7 {[%clk 0:00:30.6]} 34. Nf4 {[%clk 0:00:11.5]} 34... Nf7
{[%clk 0:00:27.1]} 35. Ne6 {[%clk 0:00:11.9]} 35... Qd6 {[%clk 0:00:24.2]} 36.
f4 {[%clk 0:00:09.5]} 36... c6 {[%clk 0:00:21.6]} 37. f5 {[%clk 0:00:09.4]}
37... Ne5 {[%clk 0:00:17.9]} 38. Ne4 {[%clk 0:00:08.6]} 38... Qxd5 {[%clk
0:00:16.6]} 39. Nf8+ {[%clk 0:00:08.7]} 39... Kg8 {[%clk 0:00:16.4]} 40. Ng6
{[%clk 0:00:08.7]} 40... Qd1+ {[%clk 0:00:16.4]} 41. Kf2 {[%clk 0:00:08]} 41...
Qd4+ {[%clk 0:00:14.7]} 42. Kg2 {[%clk 0:00:07.7]} 42... Qd3 {[%clk 0:00:12.9]}
43. Kf2 {[%clk 0:00:04.8]} 43... Qxh3 {[%clk 0:00:13]} 44. Nxe5 {[%clk 0:00:04]}
44... fxe5 {[%clk 0:00:13.5]} 45. Ng3 {[%clk 0:00:04.9]} 45... Qxg4 {[%clk
0:00:13]} 46. Kg2 {[%clk 0:00:04.7]} 46... h5 {[%clk 0:00:11.9]} 47. Re4 {[%clk
0:00:04.2]} 47... Qg5 {[%clk 0:00:12.2]} 48. Kh3 {[%clk 0:00:03.8]} 48... Kh7
{[%clk 0:00:10.7]} 49. Rh4 {[%clk 0:00:04.1]} 49... Kh6 {[%clk 0:00:11.3]} 50.
Re4 {[%clk 0:00:02]} 50... b5 {[%clk 0:00:09.6]} 51. Rh4 {[%clk 0:00:02.9]}
51... g6 {[%clk 0:00:07.1]} 52. Re4 {[%clk 0:00:03.8]} 52... gxf5 {[%clk
0:00:06.9]} 53. Rh4 {[%clk 0:00:04.7]} 53... f4 {[%clk 0:00:06.6]} 54. Ne4
{[%clk 0:00:05.6]} 54... Qf5+ {[%clk 0:00:06.9]} 0-1

[Event "Late-Titled-Tuesday-Blitz-September-19-2023"]
[Site "Chess.com"]
[Date "2023.09.19"]
[Round "5"]
[White "Tomytoteph"]
[Black "Zhigalko_Sergei"]
[Result "0-1"]
[WhiteElo "2578"]
[BlackElo "2836"]
[TimeControl "180+1"]
[EndTime "14:55:02 PDT"]
[Termination "Zhigalko_Sergei won by checkmate"]

1. e4 {[%clk 0:03:00.9]} 1... c5 {[%clk 0:02:59.7]} 2. Nf3 {[%clk 0:03:01.1]}
2... Nc6 {[%clk 0:03:00.2]} 3. Bb5 {[%clk 0:03:00.9]} 3... Nf6 {[%clk
0:02:59.2]} 4. Nc3 {[%clk 0:02:59.4]} 4... Qc7 {[%clk 0:02:58.9]} 5. O-O {[%clk
0:02:52.2]} 5... Nd4 {[%clk 0:02:58.9]} 6. Bc4 {[%clk 0:02:41.9]} 6... e6 {[%clk
0:02:58.3]} 7. Re1 {[%clk 0:02:30.3]} 7... a6 {[%clk 0:02:57.7]} 8. a4 {[%clk
0:02:29.6]} 8... d6 {[%clk 0:02:53.3]} 9. d3 {[%clk 0:02:27.9]} 9... Be7 {[%clk
0:02:53.4]} 10. Be3 {[%clk 0:02:27.2]} 10... Nc6 {[%clk 0:02:53.1]} 11. h3
{[%clk 0:02:20.8]} 11... O-O {[%clk 0:02:52.9]} 12. Qe2 {[%clk 0:02:02.6]} 12...
b6 {[%clk 0:02:45.2]} 13. Rad1 {[%clk 0:01:51.2]} 13... Bb7 {[%clk 0:02:42.7]}
14. Ba2 {[%clk 0:01:47.5]} 14... Rac8 {[%clk 0:02:19.7]} 15. Nh2 {[%clk
0:01:43.1]} 15... Nb4 {[%clk 0:02:17.9]} 16. Bb1 {[%clk 0:01:42.5]} 16... d5
{[%clk 0:02:10.8]} 17. exd5 {[%clk 0:01:34.2]} 17... Nbxd5 {[%clk 0:02:06]} 18.
Nxd5 {[%clk 0:01:33.4]} 18... Nxd5 {[%clk 0:02:06.1]} 19. Bc1 {[%clk 0:01:30.4]}
19... Nf4 {[%clk 0:01:53.7]} 20. Bxf4 {[%clk 0:01:21.7]} 20... Qxf4 {[%clk
0:01:54.6]} 21. a5 {[%clk 0:01:15]} 21... b5 {[%clk 0:01:47]} 22. c3 {[%clk
0:01:02]} 22... Rfd8 {[%clk 0:01:43.8]} 23. Ng4 {[%clk 0:00:50.8]} 23... Bd6
{[%clk 0:01:31.1]} 24. d4 {[%clk 0:00:42]} 24... h5 {[%clk 0:01:05.1]} 25. Ne5
{[%clk 0:00:31]} 25... Qg5 {[%clk 0:00:52.9]} 26. g3 {[%clk 0:00:25.1]} 26...
cxd4 {[%clk 0:00:46.3]} 27. cxd4 {[%clk 0:00:18.5]} 27... Bxe5 {[%clk
0:00:42.4]} 28. dxe5 {[%clk 0:00:16.9]} 28... h4 {[%clk 0:00:38.3]} 29. g4
{[%clk 0:00:14.5]} 29... g6 {[%clk 0:00:31]} 30. Rd6 {[%clk 0:00:14.2]} 30...
Qf4 {[%clk 0:00:18.5]} 31. Red1 {[%clk 0:00:13.8]} 31... Rxd6 {[%clk 0:00:04.6]}
32. exd6 {[%clk 0:00:14.7]} 32... Bd5 {[%clk 0:00:03.2]} 33. d7 {[%clk
0:00:12.3]} 33... Rf8 {[%clk 0:00:03.5]} 34. Qe3 {[%clk 0:00:10.7]} 34... Qd6
{[%clk 0:00:02.6]} 35. Be4 {[%clk 0:00:09.8]} 35... Qxd7 {[%clk 0:00:02.7]} 36.
Bxd5 {[%clk 0:00:10.5]} 36... exd5 {[%clk 0:00:03.6]} 37. Qg5 {[%clk 0:00:11.3]}
37... Rd8 {[%clk 0:00:03.4]} 38. Qxh4 {[%clk 0:00:11.9]} 38... d4 {[%clk
0:00:04]} 39. Qg3 {[%clk 0:00:12.4]} 39... d3 {[%clk 0:00:04.4]} 40. Rd2 {[%clk
0:00:13.1]} 40... Qd4 {[%clk 0:00:02.8]} 41. Qe3 {[%clk 0:00:13.2]} 41... Qc4
{[%clk 0:00:03.2]} 42. Kg2 {[%clk 0:00:13.1]} 42... b4 {[%clk 0:00:03.4]} 43.
Qg5 {[%clk 0:00:12.6]} 43... Rd5 {[%clk 0:00:02.8]} 44. Qe3 {[%clk 0:00:12.1]}
44... b3 {[%clk 0:00:02.7]} 45. h4 {[%clk 0:00:12.5]} 45... Qxg4+ {[%clk
0:00:02.6]} 46. Kf1 {[%clk 0:00:12.4]} 46... Qf5 {[%clk 0:00:01.9]} 47. Qe8+
{[%clk 0:00:12.4]} 47... Kg7 {[%clk 0:00:02.3]} 48. Qe3 {[%clk 0:00:13.3]} 48...
Kf6 {[%clk 0:00:01.9]} 49. h5 {[%clk 0:00:13.6]} 49... Qe5 {[%clk 0:00:02.1]}
50. Qf3+ {[%clk 0:00:13.2]} 50... Kg7 {[%clk 0:00:02.1]} 51. hxg6 {[%clk
0:00:13.6]} 51... fxg6 {[%clk 0:00:03]} 52. Qh3 {[%clk 0:00:13.3]} 52... Qf5
{[%clk 0:00:03]} 53. Qe3 {[%clk 0:00:13.3]} 53... Kf7 {[%clk 0:00:03.2]} 54.
Qa7+ {[%clk 0:00:13.9]} 54... Rd7 {[%clk 0:00:03.5]} 55. Qb6 {[%clk 0:00:12.8]}
55... Qd5 {[%clk 0:00:03.7]} 56. Qe3 {[%clk 0:00:12.1]} 56... Qh1# {[%clk
0:00:03.8]} 0-1

[Event "Late-Titled-Tuesday-Blitz-September-19-2023"]
[Site "Chess.com"]
[Date "2023.09.19"]
[Round "5"]
[White "Heinza9"]
[Black "cukus"]
[Result "1-0"]
[WhiteElo "2310"]
[BlackElo "2391"]
[TimeControl "180+1"]
[EndTime "14:55:14 PDT"]
[Termination "Heinza9 won on time"]

1. e4 {[%clk 0:03:00.9]} 1... c5 {[%clk 0:02:35.2]} 2. Nf3 {[%clk 0:02:59.9]}
2... Nc6 {[%clk 0:02:35]} 3. Bb5 {[%clk 0:02:58.4]} 3... g6 {[%clk 0:02:28.8]}
4. c3 {[%clk 0:02:57.8]} 4... Nf6 {[%clk 0:02:25.4]} 5. e5 {[%clk 0:02:57.4]}
5... Nd5 {[%clk 0:02:23.3]} 6. O-O {[%clk 0:02:56.9]} 6... Nc7 {[%clk
0:02:21.7]} 7. a4 {[%clk 0:02:55.5]} 7... Bg7 {[%clk 0:02:19.7]} 8. d4 {[%clk
0:02:55.6]} 8... O-O {[%clk 0:02:11.2]} 9. Bxc6 {[%clk 0:02:51]} 9... dxc6
{[%clk 0:02:03.3]} 10. dxc5 {[%clk 0:02:51.1]} 10... Bg4 {[%clk 0:02:02.9]} 11.
Bf4 {[%clk 0:02:48.2]} 11... Nd5 {[%clk 0:01:29.2]} 12. Bg3 {[%clk 0:02:43.1]}
12... Qc8 {[%clk 0:01:21.7]} 13. Nbd2 {[%clk 0:02:39.2]} 13... Qf5 {[%clk
0:01:20]} 14. Qe2 {[%clk 0:02:25.7]} 14... Rad8 {[%clk 0:01:13.5]} 15. Rfe1
{[%clk 0:02:11.2]} 15... Nf4 {[%clk 0:01:11.7]} 16. Bxf4 {[%clk 0:02:08.4]}
16... Qxf4 {[%clk 0:01:11.3]} 17. Qe4 {[%clk 0:02:08.3]} 17... Bh6 {[%clk
0:01:09]} 18. Qxf4 {[%clk 0:02:02.7]} 18... Bxf4 {[%clk 0:01:07.8]} 19. Re4
{[%clk 0:01:51.8]} 19... g5 {[%clk 0:01:02.4]} 20. Nc4 {[%clk 0:01:43.2]} 20...
Bf5 {[%clk 0:00:57.2]} 21. Ree1 {[%clk 0:01:41.5]} 21... Be6 {[%clk 0:00:50.3]}
22. Ne3 {[%clk 0:01:32.1]} 22... Bc8 {[%clk 0:00:35.1]} 23. h3 {[%clk
0:01:30.1]} 23... h5 {[%clk 0:00:34.6]} 24. Nc2 {[%clk 0:01:13.1]} 24... Rd5
{[%clk 0:00:29.7]} 25. Nb4 {[%clk 0:01:05.8]} 25... Rxc5 {[%clk 0:00:27.7]} 26.
Nd3 {[%clk 0:01:05.9]} 26... Rd5 {[%clk 0:00:26.8]} 27. Nxf4 {[%clk 0:01:05.4]}
27... gxf4 {[%clk 0:00:26]} 28. Re4 {[%clk 0:01:03.7]} 28... f5 {[%clk
0:00:20.1]} 29. Rxf4 {[%clk 0:01:02]} 29... e6 {[%clk 0:00:18.4]} 30. Rd4 {[%clk
0:00:50.3]} 30... f4 {[%clk 0:00:06.3]} 31. Rad1 {[%clk 0:00:48.4]} 31... b6
{[%clk 0:00:05.8]} 32. c4 {[%clk 0:00:46.2]} 32... Rxd4 {[%clk 0:00:04.7]} 33.
Rxd4 {[%clk 0:00:46.3]} 33... Kf7 {[%clk 0:00:04]} 34. Rxf4+ {[%clk 0:00:43.4]}
34... Ke7 {[%clk 0:00:03.9]} 35. Rxf8 {[%clk 0:00:43]} 35... Kxf8 {[%clk
0:00:04.8]} 36. Kf1 {[%clk 0:00:43]} 36... c5 {[%clk 0:00:05.2]} 37. Ke2 {[%clk
0:00:42.6]} 37... Bb7 {[%clk 0:00:04.8]} 38. Ke3 {[%clk 0:00:42.6]} 38... Kg7
{[%clk 0:00:04.2]} 39. g3 {[%clk 0:00:40.8]} 39... Kg6 {[%clk 0:00:04.1]} 40. g4
{[%clk 0:00:39.3]} 40... Kh6 {[%clk 0:00:02.3]} 41. Kf4 {[%clk 0:00:33.7]} 41...
Kg6 {[%clk 0:00:02.3]} 42. Nh4+ {[%clk 0:00:31.6]} 42... Kh6 {[%clk 0:00:02]}
43. g5+ {[%clk 0:00:31.8]} 43... Kg7 {[%clk 0:00:02.3]} 44. f3 {[%clk
0:00:30.1]} 44... Bc8 {[%clk 0:00:01.9]} 45. Ng2 {[%clk 0:00:21.4]} 45... a6
{[%clk 0:00:02.3]} 46. h4 {[%clk 0:00:20.7]} 46... Bd7 {[%clk 0:00:02.5]} 47. b3
{[%clk 0:00:20]} 47... b5 {[%clk 0:00:03]} 48. axb5 {[%clk 0:00:19.9]} 48...
axb5 {[%clk 0:00:03.9]} 49. cxb5 {[%clk 0:00:19.8]} 49... Bxb5 {[%clk 0:00:04]}
50. Ne3 {[%clk 0:00:19.5]} 50... Bd3 {[%clk 0:00:03.9]} 51. Nc4 {[%clk
0:00:19.2]} 51... Bc2 {[%clk 0:00:03.5]} 52. Nd2 {[%clk 0:00:18.5]} 52... Kg6
{[%clk 0:00:03.8]} 53. Ke3 {[%clk 0:00:14.8]} 53... Kf5 {[%clk 0:00:04.1]} 54.
f4 {[%clk 0:00:15.1]} 54... Kg4 {[%clk 0:00:03.6]} 55. Ne4 {[%clk 0:00:12.6]}
55... Kf5 {[%clk 0:00:03.8]} 56. Nxc5 {[%clk 0:00:11.6]} 56... Kg4 {[%clk
0:00:02.3]} 57. b4 {[%clk 0:00:10.1]} 57... Kxh4 {[%clk 0:00:01.9]} 58. b5
{[%clk 0:00:09.9]} 58... Kg4 {[%clk 0:00:01.3]} 59. b6 {[%clk 0:00:09.9]} 1-0